Cogmind - Beta 17 @@@ ROGUE MODE // 2026.07.18 @ 13:05:22 Player: cptwinky Result: Escaped! Performance ------------- Evolutions (9) 4500 Regions Visited (24) 4800 Robots Destroyed (220) 1100 Value Destroyed (10246) 10246 Prototype IDs (82) 1640 Alien Tech Used (4) 800 Bonus (5167) 5167 TOTAL SCORE: 28253 Bonus ------- High Alert Combat Kills 1179 Follower Combat Kills 983 Registered with UFD 300 Met Optimus in HQ 500 Met Imprinter 300 Met Zhirov 300 Scanned by Researcher 500 Win 3000 Friendly Fire -1895 Cogmind --------- Core Integrity 1217/1600 Matter 300/300 Energy 149/150 System Corruption 10% Temperature Cool (2) Movement Hovering (160) Ox1 Location To Epsilon Eridani Parts ------- > --- POWER (2) -------- Micro Antimatter Reactor Matter Drive > --- PROPULSION (7) --- Combat Linear Gravjet > --- UTILITY (11) ----- Experimental Signal Interpreter Advanced Target Analyzer Advanced Target Analyzer Core Analyzer Hacking Suite System Mapper > --- WEAPON (5) ------- Makeshift Axe > --- INVENTORY (5) ---- Advanced Heat Sink Advanced Transmission Jammer Transdimensional Reconstructor D4-RBY's Behemoth Befriender Enhanced Nova Cannon Peak State ------------ > --- POWER ------------ Micro Antimatter Reactor Micro Antimatter Reactor > --- PROPULSION ------- Gravmag Array Cooled Antigrav System Cooled Antigrav System Combat Antigrav System Combat Antigrav System Combat Linear Gravjet > --- UTILITY ---------- Advanced Heat Sink Large Storage Unit Experimental Signal Interpreter Advanced Target Analyzer Advanced Target Analyzer Core Analyzer Advanced Weapon Cycler Centrium Medium Armor Plating AEGIS Remote Shield Hacking Suite System Mapper > --- WEAPON ----------- Heavy Machine Gun Heavy Machine Gun Railgun Railgun Fusion Bomb Launcher > --- INVENTORY -------- Micro Antimatter Reactor Matter Drive Improved Antigrav System Experimental Matter Compressor Deep Structural Scanner Advanced Sensor Array Advanced Transmission Jammer Centrium Medium Armor Plating Transdimensional Reconstructor D4-RBY's Behemoth Befriender Enhanced Nova Cannon Bolt Gun Improved Remote Datajack Makeshift Axe [Rating: 182] Favorites ----------- Power Angular Momentum Engine Engine Angular Momentum Engine Power Core Neutrino Core Reactor Heavy Antimatter Reactor Propulsion Armored Leg Treads Light Treads Leg Armored Leg Wheel Armored Wheel Hover Unit Cooled Antigrav System Flight Unit Electron Diverter Utility Large Storage Unit Device Advanced Shield Generator Storage Large Storage Unit Processor Experimental Signal Interpreter Hackware Hacking Suite Protection Layered Medium Armor Plating Weapon Light Cannon Energy Gun Makeshift Laser Energy Cannon Heavy Phase Cannon Ballistic Gun Bolt Gun Ballistic Cannon Light Cannon Launcher Heavy Proton Missile Launcher Special Weapon Improved Remote Datajack Impact Weapon Makeshift Hammer Slashing Weapon Makeshift Axe Special Melee Weapon Datajack Build | -11 -10 -10 -8 -8 -6 -6 -6 -6 -5 -5 -5 -5 -5 -4 -4 -4 -4 -4 -3 -3 -3 -2 -2 -1 ------- Run | Yrd Mat Sub Rec Scr Fac Low Low Zio Pro Fac Upp Upp War Pro Fac Upp Upp Zhi Pro Res Qua Res Tes Acc Slots Evolved 18 | . . . . . 8 . . . . 2 . . . . 2 . . . . 2 . 2 . 2 Power 1 | . . . . . 1 . . . . . . . . . . . . . . . . . . . Propulsion 5 | . . . . . 3 . . . . 1 . . . . . . . . . 1 . . . . Utility 9 | . . . . . 4 . . . . . . . . . 1 . . . . 1 . 1 . 2 Weapon 3 | . . . . . . . . . . 1 . . . . 1 . . . . . . 1 . . Parts Attached 182 | 7 8 11 2 11 33 2 4 5 1 10 2 1 9 . 4 4 8 4 . 24 8 1 8 15 Power 21 | 1 1 2 . . 5 . . . . . . 1 1 . . 1 2 1 . 1 . . . 5 Engine 9 | 1 1 2 . . 4 . . . . . . 1 . . . . . . . . . . . . Core 3 | . . . . . . . . . . . . . . . . 1 2 . . . . . . . Reactor 9 | . . . . . 1 . . . . . . . 1 . . . . 1 . 1 . . . 5 Propulsion 46 | 2 . 1 2 3 8 . . . 1 2 . . 4 . . . 2 2 . 14 3 . 1 1 Treads 10 | 2 . . 2 2 2 . . . . 1 . . . . . . 1 . . . . . . . Leg 17 | . . . . . 5 . . . 1 1 . . 2 . . . 1 2 . 5 . . . . Wheel 3 | . . 1 . 1 1 . . . . . . . . . . . . . . . . . . . Hover 15 | . . . . . . . . . . . . . 1 . . . . . . 9 3 . 1 1 Flight 1 | . . . . . . . . . . . . . 1 . . . . . . . . . . . Utility 58 | 1 3 2 . 2 14 2 1 1 . 5 . . 3 . 3 2 1 1 . 5 3 . 4 5 Device 27 | . 1 1 . 1 3 2 1 . . 3 . . 1 . 2 2 . 1 . 2 2 . 3 2 Storage 3 | 1 1 . . . . . . . . . . . . . . . . . . 1 . . . . Processor 7 | . . . . . 3 . . 1 . . . . . . 1 . . . . 1 . . . 1 Hackware 7 | . . . . . 5 . . . . . . . . . . . . . . 1 . . . 1 Protection 14 | . 1 1 . 1 3 . . . . 2 . . 2 . . . 1 . . . 1 . 1 1 Artifact . | . . . . . . . . . . . . . . . . . . . . . . . . . Weapon 57 | 3 4 6 . 6 6 . 3 4 . 3 2 . 1 . 1 1 3 . . 4 2 1 3 4 Energy Gun 7 | 2 . . . 1 . . . 1 . . . . . . . 1 1 . . . . . 1 . Energy Cannon 8 | . . 3 . 2 . . . 1 . . . . . . 1 . . . . . 1 . . . Ballistic Gun 13 | 1 . . . 1 . . . . . . . . . . . . 1 . . 4 1 1 . 4 Ballistic Cannon 18 | . 2 2 . 2 5 . 1 1 . 2 1 . . . . . 1 . . . . . 1 . Launcher 6 | . 1 . . . 1 . . 1 . 1 1 . . . . . . . . . . . 1 . Special Weapon 1 | . . . . . . . . . . . . . 1 . . . . . . . . . . . Impact Weapon 1 | . . 1 . . . . . . . . . . . . . . . . . . . . . . Slashing Weapon 2 | . . . . . . . 2 . . . . . . . . . . . . . . . . . Piercing Weapon . | . . . . . . . . . . . . . . . . . . . . . . . . . Special Melee Weapon 1 | . 1 . . . . . . . . . . . . . . . . . . . . . . . Unidentified Prototypes 22 | . . . . 1 1 . 1 1 . 1 . . 6 . 1 . . 2 . 1 1 . 5 1 Corrupted Parts 3 | . . . . . 2 . . . . . . . . . . . . . . 1 . . . . System Corruption 14 | . . . . . 3 . . . . . . . . . . . . . . 11 . . . . Parts Lost 49 | . 2 2 . . 8 . 1 . . . . . . . . 7 3 . . 1 . 1 . 24 Power 6 | . 1 1 . . . . . . . . . . . . . 2 . . . . . . . 2 Propulsion 13 | . . . . . 6 . . . . . . . . . . 1 . . . . . . . 6 Utility 12 | . . 1 . . 2 . 1 . . . . . . . . 1 1 . . . . 1 . 5 Weapon 18 | . 1 . . . . . . . . . . . . . . 3 2 . . 1 . . . 11 Highest Loss Streak 11 | . 2 1 . . 3 . 1 . . . . . . . . 3 2 . . 1 . 1 . 11 To Critical Strikes 2 | . . . . . . . . . . . . . . . . 1 . . . . . . . 1 Average Backups 14 | 4 13 14 13 13 14 15 14 15 14 14 15 15 15 15 14 14 14 14 15 14 14 13 13 13 Power . | . . . . . . . . . . . . . . . . . . . . 1 1 1 1 . Propulsion 1 | 1 3 . . 1 . 1 1 1 . . . . 1 2 2 2 2 2 2 2 . . . . Utility 4 | . 3 4 4 6 5 3 3 4 4 4 5 5 4 4 3 3 4 4 5 3 5 5 5 5 Weapon 6 | 1 6 8 6 3 7 10 8 9 9 8 8 8 8 8 8 7 7 7 6 5 4 4 4 4 Tool/Special . | . . . . . . . . . . . . . . . . . . . . . . . . . Unused Backups 39 | . 2 7 . 6 2 . 9 1 . 1 1 . 2 . 1 . . . . 3 2 . . 2 Power 3 | . . . . . . . 1 . . . . . . . . . . . . 1 1 . . . Propulsion 5 | . 2 2 . . . . 1 . . . . . . . . . . . . . . . . . Utility 12 | . . 1 . 3 . . 2 1 . . 1 . 2 . . . . . . 2 . . . . Weapon 16 | . . 4 . 2 2 . 5 . . . . . . . 1 . . . . . 1 . . 1 Tool/Special 3 | . . . . 1 . . . . . 1 . . . . . . . . . . . . . 1 Average Slot Usage (%) 93 | . 98 98 95 91 87 99 93 85 86 94 100 100 94 94 93 81 91 98 100 99 97 94 94 90 Engine 9 | . 14 12 11 14 12 13 13 13 13 11 11 11 2 . . . . . . . . . . . Reactor 1 | . . . . . . . . . . . . . 3 5 5 . . 2 5 6 9 8 8 7 Treads 11 | . 27 20 22 27 15 . . . . 2 . . . . . . 2 . . . . . . . Leg 14 | . . . . . . 33 33 33 33 30 35 35 34 35 31 26 28 31 31 12 . . . . Wheel 1 | . . 3 1 . 6 . . . . . . . . . . . . . . . . . . . Hover 2 | . . . . . . . . . . . . . . . . . . . . 20 30 26 25 22 Device 6 | . . . . 5 . 6 8 6 6 8 5 5 5 9 12 20 19 17 15 13 11 12 13 12 Storage 8 | . 14 12 11 14 6 6 6 6 6 5 5 5 5 5 5 5 5 5 5 4 4 4 4 4 Processor 7 | . . . . . 10 20 16 12 13 11 11 11 11 11 10 10 10 10 10 11 14 13 13 15 Hackware 1 | . . . . . 12 . . . . . . . . . . . . . . 3 4 4 4 7 Protection 5 | . 12 10 7 3 7 6 1 . . 4 11 11 10 6 7 . 1 1 5 2 1 4 4 4 Energy Gun 1 | . 2 . . 5 . . . . . . . . . . . 1 2 5 5 1 . . . . Energy Cannon 3 | . . 12 7 3 . . . . . 3 5 3 2 5 9 9 1 . . . . . . . Ballistic Gun 1 | . . . . . . . . . . . . . . . . . 4 5 5 11 16 17 17 15 Ballistic Cannon 9 | . 23 24 23 2 10 5 6 . 6 10 11 11 11 11 9 3 2 5 5 1 . . . . Impact Weapon 1 | . . . 4 6 1 6 1 . . . . . . . . . . . . . . . . . Slashing Weapon 1 | . . . . . . . 3 5 5 1 . . 2 . . . 4 3 5 2 1 4 3 1 Special Melee Weapon 1 | . 1 . 3 5 . . . 5 . . . . . . . . . . . . . . . . Peak Build Rating 182 | 6 9 25 28 31 73 75 88 87 86 93 94 94 116 115 130 130 113 120 120 143 134 134 168 182 Average Rating 64 | 5 7 16 22 22 49 73 79 82 85 87 91 93 108 115 127 95 103 114 119 132 126 133 141 154 On Entrance 83 | . 6 8 25 17 22 73 72 83 86 86 93 94 94 115 115 130 88 111 120 119 129 126 131 144 Avg Prop Armor Cover (%) 9 | . . 7 7 12 7 . . . . 4 . . . . . 17 17 . . 4 . 6 . . Naked Turns . | . . . . . . . . . . . . . . . . . . . . . . . . . Heaviest Build 119 | 12 32 46 41 50 66 59 64 69 69 91 94 94 107 107 119 112 75 86 86 82 72 59 73 94 Greatest Support 194 | 40 40 40 44 48 84 80 80 80 80 103 103 103 131 131 131 131 128 152 152 194 103 103 108 108 Greatest Overweight (x) 5 | . . 2 2 4 5 . . . . 1 . . . . . . . . . 1 . 1 . 1 Average Overweight (x) . | . . . . . 1 . . . . . . . . . . . . . . . . . . . Largest Inventory Capacity 15 | 8 15 15 15 15 15 15 15 15 15 15 15 15 15 15 15 15 15 15 15 15 15 15 15 15 Average Capacity 14 | 7 14 15 15 15 15 15 15 15 15 15 15 15 15 15 15 15 15 15 15 15 15 15 15 14 Most Carried 15 | 6 15 15 15 15 15 15 15 15 15 15 15 15 15 15 15 15 15 15 15 15 15 14 15 15 Average Carried 14 | 4 13 14 14 14 14 14 14 14 14 14 14 15 14 15 14 14 14 14 15 14 14 13 13 13 Final Capacity 15 | 8 15 15 15 15 15 15 15 15 15 15 15 15 15 15 15 15 15 15 15 15 15 15 15 5 Final Carried 15 | 6 15 15 15 15 15 15 15 15 15 15 15 15 15 15 15 15 15 15 15 15 15 13 15 5 Transmogrified Parts 15 | . . . . 15 . . . . . . . . . . . . . . . . . . . . Integrity Recovered 69 | . . . . 69 . . . . . . . . . . . . . . . . . . . . Class Distribution -------------------- 49% | Mutant 9% | Gunner 9% | Tank 4% | Hacker-Mutant 4% | Assassin 3% | Hacker-Gunner 3% | Skirmisher Dominant Class ---------------- Mutant | -10/Materials Gunner | -10/Subcaves Gunner | -8/Recycling Mutant | -8/Scraptown Hacker-Mutant | -6/Factory Assassin | -6/Lower Caves Mutant | -6/Lower Caves Mutant | -6/Zion Mutant | -5/Proximity Caves Tank | -5/Factory Tank | -5/Upper Caves Tank | -5/Upper Caves Commander-Mutant | -5/Warlord Commander-Skirmisher | -4/Proximity Caves Tank | -4/Factory Mutant | -4/Upper Caves Derelict-Skirmisher | -4/Upper Caves Scavenger-Tank | -4/Zhirov Scavenger-Skirmisher | -3/Proximity Caves Hacker-Sprinter | -3/Research Hacker-Scout | -3/Quarantine Hacker-Gunner | -2/Research Hacker-Gunner | -2/Testing Hacker-Gunner | -1/Access Resources | -11 -10 -10 -8 -8 -6 -6 -6 -6 -5 -5 -5 -5 -5 -4 -4 -4 -4 -4 -3 -3 -3 -2 -2 -1 ----------- Run | Yrd Mat Sub Rec Scr Fac Low Low Zio Pro Fac Upp Upp War Pro Fac Upp Upp Zhi Pro Res Qua Res Tes Acc Matter Collected 11624 | 318 333 436 178 180 1031 344 1027 164 1416 913 27 324 . 278 371 792 144 91 106 882 142 . 584 1543 Remotely . | . . . . . . . . . . . . . . . . . . . . . . . . . Salvage Created 11486 | 148 336 379 465 . 1036 161 357 15 789 696 . 613 . 23 1125 645 237 137 249 506 112 . 646 2811 Parts 481 | 12 24 17 12 . 48 4 19 2 23 27 . 21 . . 51 20 13 8 1 31 7 . 23 118 Haulers Intercepted 1 | . . . . . . . . . . 1 . . . . . . . . . . . . . . Recyclers Shooed 8 | 1 1 . 1 . 1 . . . . . . . . . 2 . . . . . . . . 2 Parts Field Recycled 4 | . . . . . . . . . . . . . . . . . . . . . 4 . . . Retrieved Matter 92 | . . . . . . . . . . . . . . . . . . . . . 92 . . . Parts Self-Destructed 72 | . . 1 . . . 4 8 . 6 . 7 7 . 1 . 21 4 5 8 . . . . . Prevented 6 | . . . . . . . . . . . 1 4 . . . 1 . . . . . . . . Parts Restored 1 | . . . . . . . . . . . . . . . . . . . . . 1 . . . Broken 1 | . . . . . . . . . . . . . . . . . . . . . 1 . . . Kills | -11 -10 -10 -8 -8 -6 -6 -6 -6 -5 -5 -5 -5 -5 -4 -4 -4 -4 -4 -3 -3 -3 -2 -2 -1 ------- Run | Yrd Mat Sub Rec Scr Fac Low Low Zio Pro Fac Upp Upp War Pro Fac Upp Upp Zhi Pro Res Qua Res Tes Acc Combat Hostiles Destroyed 176 | . 12 9 2 . 22 3 7 . 6 8 . 14 . 1 19 12 1 . 1 6 . . 5 48 Melee 3 | . . . . . 2 . . . . . . . . . . . 1 . . . . . . . Guns 30 | . 1 . . . . . . . . . . . . . . . . . . 6 . . 1 22 Cannons 65 | . 7 8 1 . 14 . 4 . . 2 . 7 . 1 9 11 . . 1 . . . . . AOE 61 | . 4 1 . . 6 2 2 . 5 2 . 4 . . 5 . . . . . . . 4 26 Classes Destroyed 23 | 2 4 3 3 . 3 . 2 . 1 1 . . . 1 . . 2 . . . 1 . . . Worker 11 | . . . . . 3 . . . . . . . . . . . . . . 2 . . 1 5 Builder 8 | . . . 1 . 1 . . . . 1 . . . . 2 . . . . 1 . . . 2 Tunneler 4 | 4 . . . . . . . . . . . . . . . . . . . . . . . . Hauler 1 | . . . . . . . . . . 1 . . . . . . . . . . . . . . Recycler 15 | 1 . . 4 . 2 . . . . . . . . . 1 . . . . . . . 4 3 Minesweeper 1 | . . . . . . . . . . . . . . . . . 1 . . . . . . . Operator 1 | . 1 . . . . . . . . . . . . . . . . . . . . . . . Watcher 3 | . 1 . . . . . . . . 1 . . . . . . . . . . . . . 1 Swarmer 42 | . 3 . . . 5 . 3 . . 1 . 4 . . 5 4 . . 1 . . . 5 11 Grunt 57 | . 9 . . . 10 3 3 . . 3 . 1 . . 5 4 . . . . . . . 19 Brawler 6 | . . . 1 . . . . . . 2 . . . . 1 1 . . . . . . . 1 Duelist 2 | . . . . . 1 . . . . . . . . . . 1 . . . . . . . . Protector 1 | . . . 1 . . . . . . . . . . . . . . . . . . . . . Researcher 3 | . . . . . . . . . . . . . . . . . . . . . 2 . 1 . Sentry 13 | . . 1 . . 3 . . . . . . . . . 3 1 1 . . 2 . . . 2 Hunter 9 | . . . . . . . . . . . . . . 1 2 . . . . 1 . . . 5 Programmer 25 | . . . . . 4 . . . . 2 . 2 . . 3 1 . . . 3 . . . 10 Enhanced Grunt 1 | . . . . . . . . . 1 . . . . . . . . . . . . . . . Cobbler 1 | . . 1 . . . . . . . . . . . . . . . . . . . . . . Subdweller 8 | . . 8 . . . . . . . . . . . . . . . . . . . . . . Decomposer 3 | . . . . . . . . . . . . . . . . 3 . . . . . . . . Packrat 1 | . . . . . . . . . . . . . . . . 1 . . . . . . . . Samaritan 1 | . . . . . . . . . . . . . . . . . 1 . . . . . . . Tinkerer 3 | . . . . . . . 1 1 . . . . . . . 1 . . . . . . . . Assembled 6 | . . . . . . . . . 6 . . . . . . . . . . . . . . . Thug 5 | . . . . . . . . . . . . 5 . . . . . . . . . . . . Butcher 1 | . . . . . . . . . . . . 1 . . . . . . . . . . . . Mutant 3 | . . . . . . . 1 . . . . 1 . . . . 1 . . . . . . . Best Kill Streak 10 | 2 3 2 2 . 6 2 4 1 6 9 . 4 . 1 6 10 1 . 1 4 2 . 7 9 Combat Bots Only 10 | . 3 2 2 . 5 2 4 . 6 6 . 4 . 1 6 10 1 . 1 2 . . 5 7 Max Kills in Single Turn 4 | 1 2 1 1 . 4 2 2 1 2 2 . 1 . 1 2 1 1 . 1 1 1 . 3 4 Gunslinging . | . . . . . . . . . . . . . . . . . . . . . . . . . Exploded 4 | . 2 1 . . 3 2 2 . 2 1 . 1 . . 2 . . . . . . . 2 4 Melee 1 | . . . . . 1 . . . . . . . . . . . 1 . . . . . . . Uniques/NPCs Destroyed . | . . . . . . . . . . . . . . . . . . . . . . . . . Combat | -11 -10 -10 -8 -8 -6 -6 -6 -6 -5 -5 -5 -5 -5 -4 -4 -4 -4 -4 -3 -3 -3 -2 -2 -1 -------- Run | Yrd Mat Sub Rec Scr Fac Low Low Zio Pro Fac Upp Upp War Pro Fac Upp Upp Zhi Pro Res Qua Res Tes Acc Hostile Shots Fired 1112 | . 32 38 . 2 204 5 37 . 17 16 . 31 . 12 86 133 21 . 5 47 19 5 22 380 Missed 457 | . 8 11 . . 58 1 12 . 6 11 . 10 . 5 48 58 4 . 2 15 8 2 12 186 Hits 655 | . 24 27 . 2 146 4 25 . 11 5 . 21 . 7 38 75 17 . 3 32 11 3 10 194 Melee 12 | . . . . . 4 . . . 1 . . 1 . . . 3 . . . . . . . 3 Projectile 643 | . 24 27 . 2 142 4 25 . 10 5 . 20 . 7 38 72 17 . 3 32 11 3 10 191 AOE 3 | . . . . . 2 . . . 1 . . . . . . . . . . . . . . . Critical Strikes 27 | . . 1 . . 3 . 1 . . 1 . 2 . 2 1 5 1 . . . 1 . . 9 Actively Blocked 1 | . . . . . . . . . . . . . . . . . . . . . 1 . . . Part Disruptions 2 | . . . . . . . . . . 1 . . . . . . . . . 1 . . . . Damage Taken 12479 | . 387 597 . 19 2149 73 342 . 233 116 . 307 . 119 575 1483 392 . 74 541 86 273 235 4478 Core 1181 | . 41 152 . . 183 . 14 . 90 . . . . . 29 109 101 . . 54 . . 25 383 Absorbed by Shields 1005 | . . . . . 66 . 65 . . 22 . 114 . 44 216 30 38 . 27 159 . . . 224 Redirected to Shielding 135 | . . . . . . . . . . . . . . . . . . . . . 15 120 . . Regen/Repaired (Parts) 325 | . 89 . . . 66 . . . . . . . 65 . . . . . . 33 . . . 72 Core Remaining (%) 79 | 100 . . . 22 . . . . 66 . . . . 100 . . . . 79 . 95 . 98 76 Volleys Fired 591 | 38 30 48 6 9 68 2 34 3 8 15 2 23 6 12 69 38 4 3 6 32 16 . 6 113 Largest 5 | 1 2 4 4 1 2 1 2 1 2 3 1 3 1 2 4 3 1 1 3 4 4 . 5 5 Hottest 269 | 20 80 153 153 80 88 40 88 90 88 184 90 188 90 98 269 177 90 7 130 93 98 . 100 150 Shots Fired 1194 | 38 55 78 25 9 122 2 40 3 9 21 3 44 6 17 100 60 4 3 16 115 40 . 10 374 Gun 570 | 38 10 . . . . . 7 . . . . . . . . 1 1 . 10 112 32 . 5 354 Cannon 543 | . 42 76 25 9 119 . 31 3 2 15 3 36 2 17 95 54 1 . 6 . 5 . 2 . Launcher 61 | . 3 2 . . 3 2 2 . 7 6 . 8 . . 4 4 . . . . . . 2 18 Special 20 | . . . . . . . . . . . . . 4 . 1 1 2 3 . 3 3 . 1 2 Kinetic 923 | 38 45 31 19 . 122 2 40 . 2 11 1 26 . 10 29 45 . . 12 111 32 . 5 342 Thermal 154 | . . 45 6 9 . . . 3 . 4 2 10 2 7 35 8 1 . 4 . 5 . 2 11 Explosive 25 | . 3 2 . . . . . . . . . . . . . . . . . . . . 2 18 Electromagnetic 72 | . 7 . . . . . . . 7 6 . 8 . . 35 6 1 . . 1 . . . 1 Robot Hit Streak 22 | 7 18 18 7 2 22 . 10 . 2 5 . 5 5 10 7 8 3 6 2 16 17 . 9 15 Robot Miss Streak 6 | 3 3 2 3 1 6 1 5 . 3 3 . 3 . 2 3 2 3 . 3 2 3 . 1 5 Penetration Max 2 | . . . . . . . . . . . . . . . . . . . . . 1 . . 2 Secondary Targets 7 | . . . . . . . . . . . . . . . . . . . . . . . . 7 Max Gunslinging Chain 1 | . . . . . . . . . . . . . . . . . . . . . . . . 1 Shots Hit Robots 717 | 28 31 44 16 4 84 1 20 6 21 10 . 21 4 8 53 44 15 5 9 62 19 . 8 204 Core Hits 496 | 12 18 20 6 1 44 4 14 1 21 16 . 18 . 2 38 25 6 1 3 27 10 . 11 198 Critical Kills 21 | . . . . . 1 . . . . . . . . . . . . . . 3 1 . 1 15 Critical Parts Destroyed 23 | . . . 1 . . . . . . . . . . . . . . . . 4 . . . 18 Critical Strikes 62 | . 1 . 1 . 4 . 1 . . . . 1 . 1 3 4 . . 1 8 1 . 1 35 Destroy 45 | . . . . . . . . . . . . . . . . . . . . 8 1 . 1 35 Blast 14 | . 1 . . . 3 . 1 . . . . 1 . 1 2 4 . . 1 . . . . . Smash 2 | . . . 1 . 1 . . . . . . . . . . . . . . . . . . . Sever 1 | . . . . . . . . . . . . . . . 1 . . . . . . . . . Melee Attacks 179 | . . 7 6 2 23 2 11 10 29 2 . . 1 . 5 12 17 2 4 21 6 2 12 5 Impact 38 | . . 7 6 . 22 2 1 . . . . . . . . . . . . . . . . . Slashing 132 | . . . . . . . 10 6 29 . . . 1 . 5 12 17 2 4 21 6 2 12 5 Piercing . | . . . . . . . . . . . . . . . . . . . . . . . . . Sneak Attacks 47 | . . . 4 2 5 . 1 6 4 2 . . . . 1 6 7 . . 3 . . 5 1 Combat Hostiles 1 | . . . . . 1 . . . . . . . . . . . . . . . . . . . Follow-up Attacks . | . . . . . . . . . . . . . . . . . . . . . . . . . Damage Inflicted 30956 | 221 987 913 663 85 3521 223 1238 138 1881 1147 . 1266 . 253 3156 2149 763 169 385 1037 180 . 1401 9180 Guns 4307 | 219 103 . . . . . 28 . . . . . . . . 9 13 . 40 736 180 . 9 2970 Cannons 8312 | . 390 782 229 85 2127 . 427 . . 272 . 755 . 253 1764 1157 . . 71 . . . . . Explosions 12286 | . 479 128 . . 618 160 408 . 442 875 . 511 . . 1132 424 . . . . . . 987 6122 Melee 5915 | . . . 412 . 776 63 375 138 1439 . . . . . 166 559 750 169 274 301 . . 405 88 Ramming 136 | 2 15 3 22 . . . . . . . . . . . 94 . . . . . . . . . Kinetic 11453 | 219 415 378 160 . 2745 160 863 . . 272 . 573 . 218 731 1054 . . 95 727 180 . 9 2654 Thermal 2395 | . 94 404 69 85 . . . . . 35 . 182 . 35 995 169 . . 16 . . . . 311 Explosive 7622 | . 385 128 . . . . . . . . . . . . . . . . . . . . 987 6122 Electromagnetic 3435 | . 78 . . . . . . . 442 840 . 511 . . 1170 367 13 . . 9 . . . 5 Impact 1311 | . . . 412 . 776 63 60 . . . . . . . . . . . . . . . . . Slashing 4604 | . . . . . . . 315 138 1439 . . . . . 166 559 750 169 274 301 . . 405 88 Piercing . | . . . . . . . . . . . . . . . . . . . . . . . . . Highest Corruption 11 | . . . 1 . 7 7 7 7 . 1 1 2 2 . 1 1 . . . 11 11 . . 10 Average Corruption 4 | . . . 1 . 5 7 7 7 . 1 1 1 2 . 1 1 . . . 11 11 . . 5 Corruption Purged 1 | . . . . . . . . . . . . . . . . 1 . . . . . . . . Corruption Blocked . | . . . . . . . . . . . . . . . . . . . . . . . . . Effects 173 | . . . 2 . 34 19 51 1 . . 5 9 . . 6 . . . . 6 17 . . 23 Message Errors 39 | . . . . . 9 6 12 . . . 2 1 . . 1 . . . . 2 3 . . 3 Matter Fused 42 | . . . 1 . 10 4 16 . . . 1 1 . . 1 . . . . 1 3 . . 4 Heat Flow Errors 21 | . . . . . 3 2 6 1 . . 1 2 . . . . . . . 1 1 . . 4 Energy Discharges 18 | . . . . . 5 2 4 . . . . 3 . . 2 . . . . . 1 . . 1 Parts Rejected 1 | . . . . . 1 . . . . . . . . . . . . . . . . . . . Parts Fused 4 | . . . . . 1 1 1 . . . . . . . . . . . . . 1 . . . Data Loss (minor) 19 | . . . . . 1 3 8 . . . . 1 . . . . . . . 1 2 . . 3 Data Loss (major) 6 | . . . . . . 1 1 . . . . 1 . . . . . . . . 2 . . 1 Misfires 9 | . . . 1 . 2 . 2 . . . 1 . . . . . . . . . . . . 3 Alerts 3 | . . . . . 1 . . . . . . . . . . . . . . . 1 . . 1 Misdirections 5 | . . . . . . . . . . . . . . . . . . . . . 3 . . 2 Weapon Failures 6 | . . . . . 1 . 1 . . . . . . . 2 . . . . 1 . . . 1 Overload Shots . | . . . . . . . . . . . . . . . . . . . . . . . . . Overflow Damage 2365 | . 96 12 218 . 294 24 99 13 361 . . 23 . . 203 160 81 77 47 65 . . 334 258 Projectiles 246 | . . 12 . . 86 . 30 . . . . 23 . . 54 41 . . . . . . . . Explosions 753 | . 96 . . . 63 . . . 4 . . . . . 149 . . . . . . . 231 210 Melee 1366 | . . . 218 . 145 24 69 13 357 . . . . . . 119 81 77 47 65 . . 103 48 Knockbacks 54 | . 4 3 5 . 15 . 5 . . 2 . 5 . 3 6 5 . . 1 . . . . . Impact 7 | . . . 3 . 4 . . . . . . . . . . . . . . . . . . . Kinetic 46 | . 4 3 2 . 10 . 5 . . 2 . 5 . 3 6 5 . . 1 . . . . . Secondary 1 | . . . . . 1 . . . . . . . . . . . . . . . . . . . Self-Inflicted Damage 580 | . 109 . . . 96 . . . 2 36 . 8 . . 69 73 . . . . . . . 187 Shots 16 | . 3 . . . 2 . . . 1 3 . 1 . . 1 2 . . . . . . . 3 Rammed 9 | 2 3 1 3 . . . . . . . . . . . . . . . . . . . . . Targets Rammed 12 | 2 3 1 3 . . . . . . . . . . . 3 . . . . . . . . . Kicked 3 | . . . . . . . . . . . . . . . 3 . . . . . . . . . Crushed . | . . . . . . . . . . . . . . . . . . . . . . . . . Highest Temperature 270 | . 85 75 259 260 270 244 263 138 21 168 213 264 88 123 200 28 . . . 227 7 . . 166 Average Temperature 79 | . 34 29 94 112 85 139 71 69 12 94 85 109 44 35 76 8 . . . 82 7 . . 62 Received Heat Transfer 1768 | . 123 129 . . 565 18 79 . 12 9 . 24 . 27 70 211 81 . . 30 9 . 27 354 Effects 6 | . . . . . 3 . . . . . . 3 . . . . . . . . . . . . Interference 6 | . . . . . 3 . . . . . . 3 . . . . . . . . . . . . Siege Activations . | . . . . . . . . . . . . . . . . . . . . . . . . . Martial Activations . | . . . . . . . . . . . . . . . . . . . . . . . . . Shielding Activations . | . . . . . . . . . . . . . . . . . . . . . . . . . Robots Disrupted 2 | . . . . . . . . . . 1 . . . . 1 . . . . . . . . . Combat Hostiles 2 | . . . . . . . . . . 1 . . . . 1 . . . . . . . . . Robots Corrupted 20 | . . . 2 . 2 1 1 . 1 4 . 3 . . 5 1 . . . . . . . . Combat Hostiles 17 | . . . 1 . . 1 1 . 1 4 . 3 . . 5 1 . . . . . . . . Parts Fried 28 | . 1 . 6 . 1 . . . . 6 . 7 . . 5 2 . . . . . . . . Impact Corruptions 17 | . . . 8 . 7 1 1 . . . . . . . . . . . . . . . . . Robots Melted . | . . . . . . . . . . . . . . . . . . . . . . . . . Combat Hostiles . | . . . . . . . . . . . . . . . . . . . . . . . . . Parts Melted 3 | . . 1 . . . . . . . . . . . . 1 1 . . . . . . . . Heat Transferred 2870 | . 100 851 148 111 . . . . . 50 . 185 . 37 783 161 . . 37 . . . . 407 Parts Sabotaged . | . . . . . . . . . . . . . . . . . . . . . . . . . Parts Stolen . | . . . . . . . . . . . . . . . . . . . . . . . . . Parts Stripped . | . . . . . . . . . . . . . . . . . . . . . . . . . Power Chain Reactions 5 | . 1 . . . . . . . . 1 . . . . 2 1 . . . . . . . . Alert | -11 -10 -10 -8 -8 -6 -6 -6 -6 -5 -5 -5 -5 -5 -4 -4 -4 -4 -4 -3 -3 -3 -2 -2 -1 ------- Run | Yrd Mat Sub Rec Scr Fac Low Low Zio Pro Fac Upp Upp War Pro Fac Upp Upp Zhi Pro Res Qua Res Tes Acc Maximum Alert Level 4 | . . . . . 1 . . . . 1 . . . . 3 . . . . . . . 1 4 Low Security (%) 82 | 100 100 . 100 . 94 . . . . 93 . . . . 39 . . . . 100 100 100 60 18 Level 1 7 | . . . . . 5 . . . . 6 . . . . 7 . . . . . . . 39 31 Level 2 5 | . . . . . . . . . . . . . . . 31 . . . . . . . . 26 Level 3 4 | . . . . . . . . . . . . . . . 21 . . . . . . . . 20 Level 4 . | . . . . . . . . . . . . . . . . . . . . . . . . 2 Level 5 . | . . . . . . . . . . . . . . . . . . . . . . . . . High Security . | . . . . . . . . . . . . . . . . . . . . . . . . . Max Security . | . . . . . . . . . . . . . . . . . . . . . . . . . Peak Influence 1264 | 10 100 . 26 . 208 . . . . 213 . . . . 794 . . . . 181 118 14 269 1264 Initial 155 | . . . 7 . . . . . . . . . . . 28 . . . . 9 90 2 . 155 Average 150 | 1 25 . 1 . 128 . . . . 136 . . . . 373 . . . . 69 77 3 145 501 Influence Increases 7404 | 25 421 35 62 . 1010 70 265 . 104 427 . 160 . 103 1078 442 69 10 164 429 237 12 410 1871 Destroy 0b10 Robot/C 3600 | . 240 20 20 . 500 60 120 . 40 240 . 140 . 40 380 340 60 . 120 120 40 . 120 1000 Destroy 0b10 Robot/NC 290 | 25 10 . 35 . 30 . 5 . 10 25 . . . . 15 . 5 10 10 25 . . 25 60 Destroy Leader 700 | . 62 . . . 130 10 20 . 20 56 . 20 . 10 90 40 . . 20 50 . . 10 162 Allied During Kill 152 | . . . . . 17 . . . 34 41 . . . 8 . 17 4 . 14 4 . . . 13 Trap Triggered on 0b10 10 | . 10 . . . . . . . . . . . . . . . . . . . . . . . Successful Hack 271 | . 6 . 5 . 72 . . . . 13 . . . . 27 . . . . 73 48 12 . 15 Disable Machine 585 | . 30 . . . 90 . . . . 30 . . . . 135 . . . . 45 60 . 105 90 Anti-Garrison Action 200 | . . . . . . . . . . . . . . . 200 . . . . . . . . . Destroy Structure 831 | . 48 . 2 . 66 . . . . 22 . . . . 186 . . . . 82 14 . 60 351 Partial Spotted 30 | . . . . . . . . . . . . . . . . . . . . 15 . . . 15 Lose Combat Pursuer 735 | . 15 15 . . 105 . 120 . . . . . . 45 45 45 . . . 15 75 . 90 165 Influence Decreases 6160 | 25 343 98 77 . 824 256 265 . 104 328 99 160 . 58 357 750 500 37 150 281 394 17 151 886 Entered New Map 752 | . . 38 8 . . 69 . . . . 37 . . . 17 284 88 27 . 5 72 3 . 104 Time Decay 4284 | 25 323 50 69 . 568 180 255 . 104 268 62 160 . 31 340 386 362 10 150 234 190 14 141 362 Lost Part 470 | . 20 10 . . 80 . 10 . . . . . . . . 70 30 . . 10 . . . 240 Lost Ally 256 | . . . . . 30 7 . . . 60 . . . 27 . 10 20 . . 32 30 . 10 30 Purge Threat 398 | . . . . . 146 . . . . . . . . . . . . . . . 102 . . 150 Squads Dispatched 49 | . 3 . . . 12 . . . . 2 . . . 1 11 . . . . 4 3 . 3 10 Investigation 11 | . . . . . 6 . . . . . . . . . 1 . . . . 1 . . 1 2 Extermination 17 | . . . . . 5 . . . . 1 . . . . 2 . . . . 2 1 . 2 4 Reinforcement 14 | . 3 . . . 1 . . . . 1 . . . . 4 . . . . 1 2 . . 2 Assault 3 | . . . . . . . . . . . . . . 1 1 . . . . . . . . 1 Garrison 4 | . . . . . . . . . . . . . . . 3 . . . . . . . . 1 Intercept . | . . . . . . . . . . . . . . . . . . . . . . . . . Searches Triggered . | . . . . . . . . . . . . . . . . . . . . . . . . . Construction Impeded 1 | . . . . . . . . . . . . . . . . . . . . . . . . 1 Haulers Reinforced 2 | . . . . . . . . . . 1 . . . . . . . . . . . . . 1 Active Scanning Responses . | . . . . . . . . . . . . . . . . . . . . . . . . . Cargo Convoy Interrupts . | . . . . . . . . . . . . . . . . . . . . . . . . . Stealth | -11 -10 -10 -8 -8 -6 -6 -6 -6 -5 -5 -5 -5 -5 -4 -4 -4 -4 -4 -3 -3 -3 -2 -2 -1 --------- Run | Yrd Mat Sub Rec Scr Fac Low Low Zio Pro Fac Upp Upp War Pro Fac Upp Upp Zhi Pro Res Qua Res Tes Acc Distress Signals 10 | . 1 . . . 1 . . . . . . . . . 1 . . . . 1 2 1 . 3 Communications Jammed 8 | . . . . . . . . . . . . . . . 4 . . . . . . . . 4 Distress Signals 8 | . . . . . . . . . . . . . . . 4 . . . . . . . . 4 Times Spotted 342 | . 27 11 2 5 38 3 13 . 12 13 . 13 . 9 28 25 4 . 6 19 13 3 14 84 Peak Tracking Total 18 | . 4 2 1 3 5 3 4 . 11 8 . 4 . 14 6 8 3 . 2 8 7 2 10 18 Tactical Retreats 30 | . 1 1 . 1 5 . 7 . . . . . . 1 3 1 . . . 1 2 . 1 6 Traps | -11 -10 -10 -8 -8 -6 -6 -6 -6 -5 -5 -5 -5 -5 -4 -4 -4 -4 -4 -3 -3 -3 -2 -2 -1 ------- Run | Yrd Mat Sub Rec Scr Fac Low Low Zio Pro Fac Upp Upp War Pro Fac Upp Upp Zhi Pro Res Qua Res Tes Acc Traps Triggered 12 | . . 1 . . 4 . . . . 1 . . . . 1 . . . . 1 1 . . 3 Indirectly 1 | . . . . . . . . . . 1 . . . . . . . . . . . . . . Trap Hack Attempts 55 | . 55 . . . . . . . . . . . . . . . . . . . . . . . Triggered . | . . . . . . . . . . . . . . . . . . . . . . . . . Disarmed . | . . . . . . . . . . . . . . . . . . . . . . . . . Reprogrammed 6 | . 6 . . . . . . . . . . . . . . . . . . . . . . . Reused 1 | . 1 . . . . . . . . . . . . . . . . . . . . . . . Traps Extracted . | . . . . . . . . . . . . . . . . . . . . . . . . . Installed . | . . . . . . . . . . . . . . . . . . . . . . . . . Triggered 1 | . 1 . . . . . . . . . . . . . . . . . . . . . . . Machines | -11 -10 -10 -8 -8 -6 -6 -6 -6 -5 -5 -5 -5 -5 -4 -4 -4 -4 -4 -3 -3 -3 -2 -2 -1 ---------- Run | Yrd Mat Sub Rec Scr Fac Low Low Zio Pro Fac Upp Upp War Pro Fac Upp Upp Zhi Pro Res Qua Res Tes Acc Machines Disabled 43 | . 2 1 . . 6 . . . 2 2 . . . . 9 1 . . . 3 4 . 7 6 Max in Single Turn 7 | . 1 1 . . 2 . . . 1 1 . . . . 7 1 . . . 1 1 . 2 1 Garrison Access 4 | . . . . . 1 . . . . . . . . . 1 . . . . 1 . . . 1 Machines Repaired . | . . . . . . . . . . . . . . . . . . . . . . . . . Machines Dismantled . | . . . . . . . . . . . . . . . . . . . . . . . . . Machines Sabotaged . | . . . . . . . . . . . . . . . . . . . . . . . . . Overloaded Fab Kills . | . . . . . . . . . . . . . . . . . . . . . . . . . Hacking | -11 -10 -10 -8 -8 -6 -6 -6 -6 -5 -5 -5 -5 -5 -4 -4 -4 -4 -4 -3 -3 -3 -2 -2 -1 --------- Run | Yrd Mat Sub Rec Scr Fac Low Low Zio Pro Fac Upp Upp War Pro Fac Upp Upp Zhi Pro Res Qua Res Tes Acc Machines Accessed 72 | . 4 2 2 3 11 . 2 . . 2 2 1 1 . 5 . . 4 . 7 9 1 7 9 Terminals 34 | . 3 . 2 . 4 . . . . 2 1 . . . 2 . . . . 2 7 1 5 5 Fabricators 3 | . . . . . 1 . . . . . . . . . . . . . . 1 . . 1 . Repair Stations 6 | . 1 . . . 1 . . . . . . . . . 1 . . . . 1 . . . 2 Recycling Units . | . . . . . . . . . . . . . . . . . . . . . . . . . Scanalyzers 10 | . . . . . 3 . . . . . . . . . 1 . . . . 2 2 . 1 1 Garrison Access 5 | . . . . . 2 . . . . . . . . . 1 . . . . 1 . . . 1 Total Hacks 203 | . 14 6 6 25 32 . 2 . . 4 2 1 1 . 15 . . 17 . 15 24 4 15 20 Successful 122 | . 6 6 2 25 18 . 2 . . 2 2 1 1 . 8 . . 17 . 10 11 1 4 6 Failed 77 | . 7 . 4 . 13 . . . . 2 . . . . 6 . . . . 5 12 3 11 14 Catastrophic 9 | . 3 . 1 . 1 . . . . 1 . . . . 1 . . . . 1 . . . 1 Database Lockouts 4 | . 1 . . . 1 . . . . . . . . . 1 . . . . . 1 . . . Manual 49 | . 11 . . . 5 . . 1 . 3 . . . . 4 . . . . 1 12 1 5 6 Terminals 87 | . 12 . 6 . 10 . . . . 4 1 . . . 4 . . . . 5 19 4 11 11 Fabricators 11 | . . . . . 6 . . . . . . . . . . . . . . 3 . . 2 . Repair Stations 14 | . 2 . . . 2 . . . . . . . . . 2 . . . . 2 . . . 6 Recycling Units . | . . . . . . . . . . . . . . . . . . . . . . . . . Scanalyzers 31 | . . . . . 11 . . . . . . . . . 8 . . . . 3 5 . 2 2 Garrison Access 7 | . . . . . 3 . . . . . . . . . 1 . . . . 2 . . . 1 Terminal Hacks 81 | . 4 6 2 25 4 . 2 . . 1 2 1 1 . 1 . . 17 . 3 8 . 2 2 Record 35 | . . 5 . 24 . . . . . . 1 . . . . . . 5 . . . . . . Part Schematic 4 | . . . . . . . . . . . . . . . . . . 4 . . . . . . Robot Schematic 1 | . . . 1 . . . . . . . . . . . . . . . . . . . . . Robot Analysis 8 | . 3 . . . 1 . . . . . . . . . . . . 4 . . . . . . Prototype ID Bank 5 | . . . . . . . . . . . . . . . . . . 4 . . 1 . . . Open Door 5 | . . . . . . . 2 . . . 1 1 1 . . . . . . . . . . . Level Access Points 2 | . . . . . . . . . . . . . . . . . . . . . 1 . . 1 Branch Access Points 1 | . . . . . . . . . . . . . . . . . . . . 1 . . . . Scanalyzer Index 1 | . . . . . 1 . . . . . . . . . . . . . . . . . . . Unreport Threat 4 | . . . . . 2 . . . . . . . . . . . . . . . 1 . . 1 Locate Traps 2 | . . . . . . . . . . . . . . . . . . . . 1 1 . . . Recall Extermination 1 | . . . . . . . . . . . . . . . . . . . . . 1 . . . Recall Reinforcements 1 | . . . . . . . . . . . . . . . . . . . . . 1 . . . Hauler Manifests 1 | . 1 . . . . . . . . . . . . . . . . . . . . . . . Registered Components 2 | . . . . . . . . . . 1 . . . . . . . . . . 1 . . . Zone Layout 5 | . . . 1 . . . . . . . . . . . 1 . . . . 1 1 . 1 . Proto ID Catalog 2 | . . 1 . 1 . . . . . . . . . . . . . . . . . . . . Protovariant Controls 1 | . . . . . . . . . . . . . . . . . . . . . . . 1 . Fabricator Hacks 6 | . . . . . 4 . . . . . . . . . . . . . . 2 . . . . Load Schematic 3 | . . . . . 2 . . . . . . . . . . . . . . 1 . . . . Build 3 | . . . . . 2 . . . . . . . . . . . . . . 1 . . . . Repair Station Hacks 6 | . 2 . . . . . . . . . . . . . . . . . . 2 . . . 2 Scan Component 3 | . 1 . . . . . . . . . . . . . . . . . . 1 . . . 1 Repair 3 | . 1 . . . . . . . . . . . . . . . . . . 1 . . . 1 Recycling Unit Hacks . | . . . . . . . . . . . . . . . . . . . . . . . . . Scanalyzer 17 | . . . . . 6 . . . . . . . . . 5 . . . . 2 2 . 2 . Insert Component 4 | . . . . . 2 . . . . . . . . . 2 . . . . . . . . . Analyze 3 | . . . . . 2 . . . . . . . . . 1 . . . . . . . . . Retrieve Study 10 | . . . . . 2 . . . . . . . . . 2 . . . . 2 2 . 2 . Garrison Access Hacks 3 | . . . . . 1 . . . . . . . . . . . . . . 1 . . . 1 Seal Access 3 | . . . . . 1 . . . . . . . . . . . . . . 1 . . . 1 Unauthorized Hacks 9 | . . . . . 3 . . . . 1 . . . . 2 . . . . . 1 1 . 1 Terminals 6 | . . . . . 1 . . . . 1 . . . . 1 . . . . . 1 1 . 1 Assimilate 1 | . . . . . . . . . . . . . . . . . . . . . . 1 . . Botnet 4 | . . . . . . . . . . 1 . . . . 1 . . . . . 1 . . 1 Disrupt 1 | . . . . . 1 . . . . . . . . . . . . . . . . . . . Fabricators . | . . . . . . . . . . . . . . . . . . . . . . . . . Repair Stations 1 | . . . . . 1 . . . . . . . . . . . . . . . . . . . Patch 1 | . . . . . 1 . . . . . . . . . . . . . . . . . . . Recycling Units . | . . . . . . . . . . . . . . . . . . . . . . . . . Scanalyzers . | . . . . . . . . . . . . . . . . . . . . . . . . . Garrison Access 2 | . . . . . 1 . . . . . . . . . 1 . . . . . . . . . Reprogram 1 | . . . . . 1 . . . . . . . . . . . . . . . . . . . Jam 1 | . . . . . . . . . . . . . . . 1 . . . . . . . . . Data Cores Recovered 1 | . . . . . . . . . . 1 . . . . . . . . . . . . . . Used . | . . . . . . . . . . . . . . . . . . . . . . . . . Hacking Detections 47 | . 3 . 2 . 7 . . . . 2 1 . . . 4 . . . . 7 7 1 6 7 Full Trace Events 8 | . . . 1 . 3 . . . . . . . . . . . . . . 1 . . 1 2 Feedback Events 1 | . . . 1 . . . . . . . . . . . . . . . . . . . . . Corruption 1 | . . . 1 . . . . . . . . . . . . . . . . . . . . . Feedback Blocked . | . . . . . . . . . . . . . . . . . . . . . . . . . Robot Schematics Acquired 4 | . . . 1 . . . . 3 . . . . . . . . . . . . . . . . Robots Built . | . . . . . . . . . . . . . . . . . . . . . . . . . Authchips . | . . . . . . . . . . . . . . . . . . . . . . . . . Time . | . . . . . . . . . . . . . . . . . . . . . . . . . Total Robot Build Rating . | . . . . . . . . . . . . . . . . . . . . . . . . . Part Schematics Acquired 44 | . . . . . 10 . 5 21 . . . . . . 1 . . 4 . . 1 . 2 . Parts Built 3 | . . . . . 2 . . . . . . . . . . . . . . 1 . . . . Authchips 2 | . . . . . 2 . . . . . . . . . . . . . . . . . . . Time 67 | . . . . . 50 . . . . . . . . . . . . . . 17 . . . . Total Part Build Rating 3 | . . . . . 2 . . . . . . . . . . . . . . 1 . . . . Part Studies Acquired 10 | . . . . . 2 . . . . . . . . . 2 . . . . 2 2 . 2 . Parts Repaired 3 | . 1 . . . . . . . . . . . . . . . . . . 1 . . . 1 Time 62 | . 26 . . . . . . . . . . . . . . . . . . 28 . . . 8 Parts Recycled . | . . . . . . . . . . . . . . . . . . . . . . . . . Recycled Matter . | . . . . . . . . . . . . . . . . . . . . . . . . . Retrieved Matter . | . . . . . . . . . . . . . . . . . . . . . . . . . Retrieved Components . | . . . . . . . . . . . . . . . . . . . . . . . . . Parts Scanalyzed 2 | . . . . . 1 . . . . . . . . . 1 . . . . . . . . . Part Schematics Acquired 2 | . . . . . 1 . . . . . . . . . 1 . . . . . . . . . Parts Damaged 1 | . . . . . . . . . . . . . . . 1 . . . . . . . . . Bothacking | -11 -10 -10 -8 -8 -6 -6 -6 -6 -5 -5 -5 -5 -5 -4 -4 -4 -4 -4 -3 -3 -3 -2 -2 -1 ------------ Run | Yrd Mat Sub Rec Scr Fac Low Low Zio Pro Fac Upp Upp War Pro Fac Upp Upp Zhi Pro Res Qua Res Tes Acc Used RIF Installer . | . . . . . . . . . . . . . . . . . . . . . . . . . Robots Hacked 16 | . . . . 2 . . . 4 . 1 . . . . 1 . . 3 . 1 3 . 1 . Non-combat 1 | . . . . . . . . 1 . . . . . . . . . . . . . . . . Combat 9 | . . . . 2 . . . 3 . 1 . . . . . . . 3 . . . . . . Robot Hacks Applied 10 | . . . . 2 . . . 4 . 1 . . . . . . . 3 . . . . . . parse_system 10 | . . . . 2 . . . 4 . 1 . . . . . . . 3 . . . . . . Manual 6 | . . . . . . . . . . . . . . . 1 . . . . 1 3 . 1 . Relay Couplers Released 3 | . . . . . . . . . . . . . . . . . . . . 3 . . . . Machine Destruction 3 | . . . . . . . . . . . . . . . . . . . . 3 . . . . Fabnet Peak Effective % . | . . . . . . . . . . . . . . . . . . . . . . . . . Robots Rewired 16 | . . . 3 . 1 . . . . 1 . 2 5 . . 1 1 . . 1 . . . 1 Allies Hacked 1 | . . . . . 1 . . . . . . . . . . . . . . . . . . . Hacks Repelled . | . . . . . . . . . . . . . . . . . . . . . . . . . Allies | -11 -10 -10 -8 -8 -6 -6 -6 -6 -5 -5 -5 -5 -5 -4 -4 -4 -4 -4 -3 -3 -3 -2 -2 -1 -------- Run | Yrd Mat Sub Rec Scr Fac Low Low Zio Pro Fac Upp Upp War Pro Fac Upp Upp Zhi Pro Res Qua Res Tes Acc Total Allies 29 | . . . 3 . 4 . . 2 . 2 . 2 5 . 1 1 1 . . 2 3 1 1 1 Largest Group 6 | . . . 3 3 3 2 . 2 2 2 . 1 6 6 1 1 1 1 1 2 2 1 2 1 Highest-Rated Group 287 | . . . 70 70 87 58 . 192 192 128 . 31 287 287 45 116 116 116 116 232 55 26 52 219 Highest-Rated Ally 219 | . . . 27 27 30 29 . 96 96 99 . 31 64 64 45 116 116 116 116 116 45 26 26 219 Initial UFD Resources 39 | . . . . . 24 24 24 24 28 28 28 28 28 31 31 31 31 31 33 33 33 35 35 39 Total Orders 18 | . . . . 6 . . . . . . . . 2 2 . 4 2 2 . . . . . . STAY 9 | . . . . 3 . . . . . . . . 1 1 . 2 1 1 . . . . . . FOLLOW 8 | . . . . 2 . . . . . . . . 1 1 . 2 1 1 . . . . . . AID 1 | . . . . 1 . . . . . . . . . . . . . . . . . . . . Ally Attacks 146 | . . . . 2 18 5 . . 16 25 . 7 . 26 . 16 6 . 8 10 . . . 7 Total Damage 5171 | . . . . 32 267 40 . . 679 782 . 128 . 415 . 800 305 . 370 305 . . . 1048 Kills 35 | . . . . 1 3 . . . 7 6 . . . 1 . 5 2 . 5 2 . . . 3 Allies Corrupted 3 | . . . . . . . . . . 2 . . . . . . . . . 1 . . . . Allies Melted 2 | . . . . 2 . . . . . . . . . . . . . . . . . . . . Intel | -11 -10 -10 -8 -8 -6 -6 -6 -6 -5 -5 -5 -5 -5 -4 -4 -4 -4 -4 -3 -3 -3 -2 -2 -1 ------- Run | Yrd Mat Sub Rec Scr Fac Low Low Zio Pro Fac Upp Upp War Pro Fac Upp Upp Zhi Pro Res Qua Res Tes Acc Active Infowar (turns) 7790 | . . 183 . . 621 613 975 . . 428 349 157 . 388 758 362 542 194 323 652 347 66 320 512 Optics 2209 | . . . . . 621 613 975 . . . . . . . . . . . . . . . . . Sensors 5517 | . . . . . 41 445 783 . . 239 349 157 . 388 352 339 542 73 266 541 345 66 273 318 Structural 486 | . . . . . . . . . . 189 . . . . . . . . . 59 189 . 1 48 Seismic 183 | . . 183 . . . . . . . . . . . . . . . . . . . . . . Jamming 2494 | . . . . . . . . . . . . . . . 477 25 539 194 323 389 2 35 316 194 Robot Analysis Total 8 | . 3 . . . 1 . . . . . . . . . . . . 4 . . . . . . Derelict Logs Recovered 14 | . . 1 . 4 . . 1 1 1 . . 2 . 1 . 2 1 . . . . . . . Drone Launches . | . . . . . . . . . . . . . . . . . . . . . . . . . Drone Recoveries . | . . . . . . . . . . . . . . . . . . . . . . . . . Exploration | -11 -10 -10 -8 -8 -6 -6 -6 -6 -5 -5 -5 -5 -5 -4 -4 -4 -4 -4 -3 -3 -3 -2 -2 -1 ------------- Run | Yrd Mat Sub Rec Scr Fac Low Low Zio Pro Fac Upp Upp War Pro Fac Upp Upp Zhi Pro Res Qua Res Tes Acc Turns Passed 25307 | 241 1266 2854 920 4802 1954 613 1805 1289 1408 614 355 819 520 472 822 910 824 194 323 703 382 66 320 831 Spaces Moved 15715 | 96 554 1371 577 1649 934 481 1341 820 894 335 287 550 391 348 558 547 679 156 264 780 557 77 565 904 Core 4 | 4 . . . . . . . . . . . . . . . . . . . . . . . . Treads 4135 | 92 554 902 513 1562 512 . . . . . . . . . . . . . . . . . . . Legs 7873 | . . . . . 27 481 1341 820 894 335 287 550 391 348 558 547 679 156 264 195 . . . . Wheels 1015 | . . 469 64 87 395 . . . . . . . . . . . . . . . . . . . Hover 2688 | . . . . . . . . . . . . . . . . . . . . 585 557 77 565 904 Flight . | . . . . . . . . . . . . . . . . . . . . . . . . . Fastest Speed 19 | 50 160 130 130 120 120 120 120 120 120 120 120 120 112 113 105 100 100 109 110 19 26 30 34 34 Average Speed 117 | 155 160 165 143 153 162 120 120 120 120 151 120 120 114 113 105 101 105 109 110 47 36 56 41 48 Slowest Speed 280 | 160 160 240 152 250 280 120 120 120 120 190 120 120 120 113 113 105 109 110 110 124 41 105 45 160 Overloaded Moves 61 | . . . . . . . . . . . . . . . . . . . . 14 5 2 16 24 Propulsion Burnouts . | . . . . . . . . . . . . . . . . . . . . . . . . . Robots Hopped . | . . . . . . . . . . . . . . . . . . . . . . . . . Potential Cave-ins 13 | . . 8 . . . . . . . . . . . . . . . . . . . . . 5 Cave-ins Triggered . | . . . . . . . . . . . . . . . . . . . . . . . . . Exploration Rate (%) 54 | 5 88 75 66 86 24 57 90 86 91 10 50 77 69 55 20 60 77 60 44 23 58 3 56 35 Regions Visited 24 Branch Regions 17 Pre-discovered Areas 14 | . . 1 . 6 . . 1 2 . . . . . . . 1 . 3 . . . . . . Known Exits Taken 20 | . . 1 . . 1 1 1 1 1 1 1 1 1 1 1 1 1 1 1 1 1 1 1 . Unknown Exits Taken 4 | 1 1 . 1 1 . . . . . . . . . . . . . . . . . . . . Scrap Searched 33 | . . 4 . 7 . . 6 3 3 . 3 1 . . . 2 4 . . . . . . . Spaces Dug 92 | . . 8 . 5 7 . 10 3 8 1 1 2 1 3 11 3 2 . . 18 3 . 4 2 Terrain Destroyed 678 | . 45 18 1 6 71 18 53 4 9 10 3 19 1 9 110 36 3 . 7 33 5 . 23 194 Melee 45 | . . 7 . . . . 4 1 8 . . . 1 . . . 2 . . 16 2 . 2 2 Projectile 171 | . . 4 1 6 28 . 16 3 1 10 3 19 . 9 32 24 1 . 7 . 3 . 2 2 AOE 453 | . 45 7 . . 43 18 33 . . . . . . . 78 12 . . . 12 . . 19 186 Terrain Rammed . | . . . . . . . . . . . . . . . . . . . . . . . . . Walls Destroyed . | . . . . . . . . . . . . . . . . . . . . . . . . . Machines Disabled . | . . . . . . . . . . . . . . . . . . . . . . . . . Actions | -11 -10 -10 -8 -8 -6 -6 -6 -6 -5 -5 -5 -5 -5 -4 -4 -4 -4 -4 -3 -3 -3 -2 -2 -1 --------- Run | Yrd Mat Sub Rec Scr Fac Low Low Zio Pro Fac Upp Upp War Pro Fac Upp Upp Zhi Pro Res Qua Res Tes Acc Total 21585 | 152 876 1883 648 3910 1219 511 1491 1113 1190 419 295 667 458 407 693 823 759 176 278 1031 702 96 627 1161 Wait 4253 | 3 202 411 20 2199 97 20 53 266 248 34 . 72 23 44 34 205 44 . 2 103 71 16 6 80 Move 15691 | 95 553 1371 576 1648 933 480 1340 819 893 334 286 549 390 347 557 546 678 155 263 779 556 76 564 903 Hop . | . . . . . . . . . . . . . . . . . . . . . . . . . Pick Up 135 | 6 11 12 2 14 19 1 16 3 4 6 1 . 3 . 2 1 1 2 . 15 8 . 3 5 Fast Attach 120 | 6 6 6 1 7 17 . 3 1 . 5 . 1 10 . 4 5 8 5 . 13 5 . 10 7 Attach 56 | . 2 2 2 2 12 1 1 1 . 3 . . 1 . 1 1 1 1 . 2 3 2 2 16 Detach 52 | . 4 1 2 5 8 . 3 2 . . . 1 . . 1 2 . . . 6 3 . 5 9 Swap 216 | 2 6 10 4 9 22 4 12 5 4 11 4 5 4 4 11 11 5 2 3 31 21 . 9 17 Drop 167 | . 4 15 4 15 13 1 18 3 4 9 2 . 13 . 3 2 1 6 . 25 13 . 10 6 Fire 591 | 38 30 48 6 9 68 2 34 3 8 15 2 23 6 12 69 38 4 3 6 32 16 . 6 113 Melee 179 | . . 7 6 2 23 2 11 10 29 2 . . 1 . 5 12 17 2 4 21 6 2 12 5 Ram . | . . . . . . . . . . . . . . . . . . . . . . . . . Kick 3 | . . . . . . . . . . . . . . . 3 . . . . . . . . . Crush 8 | 2 3 . 3 . . . . . . . . . . . . . . . . . . . . . Escape Stasis 13 | . . . . . 6 . . . . . . . . . 3 . . . . 4 . . . . Rewire 46 | . . . 22 . 1 . . . . . . 16 7 . . . . . . . . . . . Trap 55 | . 55 . . . . . . . . . . . . . . . . . . . . . . . Miscellaneous . | . . . . . . . . . . . . . . . . . . . . . . . . . Route ------- -11/Scrapyard -10/Materials (discovered 6 exits: [*Mat x3] / [*Min x2] / *Sub) -10/Subcaves (discovered 2 exits: [*Mat] / *Rec) -8/Recycling (discovered 2 exits: *Fac / *Scr) -8/Scraptown (discovered 2 exits: *Fac x2) -6/Factory (discovered 6 exits: Fac x4 / *Low x2) -6/Lower Caves -6/Lower Caves (discovered 2 exits: *Fac / *Zio) -6/Zion -5/Proximity Caves -5/Factory (discovered 3 exits: Fac / *Upp x2) -5/Upper Caves -5/Upper Caves (discovered 2 exits: *Fac / *War) -5/Warlord -4/Proximity Caves -4/Factory (discovered 2 exits: *Res / *Upp) -4/Upper Caves -4/Upper Caves (discovered 2 exits: *Res / *Zhi) -4/Zhirov -3/Proximity Caves -3/Research (discovered 4 exits: *Res x2 / *Qua x2) -3/Quarantine -2/Research (discovered 3 exits: Acc / *Tes x2) -2/Testing -1/Access To Epsilon Eridani History --------- Turn | Location | Event 3 | -11/Scrapyard | Discovered new exit (range 15) 242 | -11/Scrapyard | Entered Materials 324 | -10/Materials | Build established: Mutant 546 | -10/Materials | Discovered new exit (range 5) 624 | -10/Materials | Discovered new exit (range 16) 1018 | -10/Materials | Repaired Lgt. Treads 1130 | -10/Materials | Discovered new exit (range 16) 1315 | -10/Materials | Discovered new exit (range 12) 1323 | -10/Materials | Central database locked down 1423 | -10/Materials | Discovered new exit (range 11) 1496 | -10/Materials | Discovered new exit (range 9) 1508 | -10/Materials | Entered Subcaves 1555 | -10/Subcaves | Ambushed by Subdwellers from Twisted Machinery 1573 | -10/Subcaves | Core integrity fell below 50% 1698 | -10/Subcaves | Discovered new exit (range 5) 1708 | -10/Subcaves | Learned location of Zion (-6) 2001 | -10/Subcaves | Shifting Twisted Machinery released Flamer 2025 | -10/Subcaves | Shifting Twisted Machinery released Sub. Monowheel 2319 | -10/Subcaves | Disturbed a concealed Subdweller 2697 | -10/Subcaves | Visited 4L-MR0's lab 2717 | -10/Subcaves | Found Gun Armor 2718 | -10/Subcaves | Attached Gun Armor, gained temporary slots: Weapon x2 2731 | -10/Subcaves | Found Prototype Device 3011 | -10/Subcaves | Build established: Gunner 3742 | -10/Subcaves | Shifting Twisted Machinery released Sub. Machine Gun 3795 | -10/Subcaves | Shifting Twisted Machinery released Sub. Beam Cannon 3975 | -10/Subcaves | Visited Clippyterm 3979 | -10/Subcaves | Identified exit to Recycling 3979 | -10/Subcaves | Learned Factory emergency access door positions 4142 | -10/Subcaves | Ambushed by angry Subdweller bent on revenge 4362 | -10/Subcaves | Entered Recycling 4778 | -8/Recycling | Discovered new exit (range 5) 5238 | -8/Recycling | Scanned before Scraplab entrance 5262 | -8/Recycling | Entered Scraplab 5277 | -8/Recycling | Discovered new exit (range 3) 5282 | -8/Recycling | Entered Scraptown 5282 | -8/Scraptown | Accompanied by 3 allies 5282 | -8/Scraptown | System corruption cleaned by C-Scrubber 5333 | -8/Scraptown | Build established: Mutant 5594 | -8/Scraptown | Discovered new exit (range 11) 5664 | -8/Scraptown | Scanned Subdweller tech in exchange for log data 5667 | -8/Scraptown | Learned location of Testing (-2) 5668 | -8/Scraptown | Learned location of Quarantine (-3) 5670 | -8/Scraptown | Learned location of 2 exits from Upper Caves 5671 | -8/Scraptown | Learned Research stockpile data 5710 | -8/Scraptown | Visited IN-MT5's Study 5723 | -8/Scraptown | Visited Assassins FH 5813 | -8/Scraptown | Visited Shadow of the Wyrm 5832 | -8/Scraptown | Visited Junk Repository 5868 | -8/Scraptown | Visited Awakened 5913 | -8/Scraptown | Visited Fellowship of the Rings 5957 | -8/Scraptown | Visited UFD Registry 5957 | -8/Scraptown | Registered with UFD as "Pulsedisc" 6015 | -8/Scraptown | Visited Chapter 10 6041 | -8/Scraptown | Visited Science Guys 6093 | -8/Scraptown | Visited Abandonware Association 6111 | -8/Scraptown | Learned abandonware demo "HACKBUD.EXE" 6111 | -8/Scraptown | Learned abandonware demo "SHUTEYE.EXE" 6150 | -8/Scraptown | Visited Cartography Club 6163 | -8/Scraptown | Visited Science Testing Area 6183 | -8/Scraptown | Visited DA-N13 Charitable Foundation 6189 | -8/Scraptown | Found DCF Scrap (26 items) 6244 | -8/Scraptown | Visited Curators Association 6341 | -8/Scraptown | Visited Infowarlord's Domain 6352 | -8/Scraptown | Found Exp. Signal Interpreter 6381 | -8/Scraptown | Visited Scrap Suit Storage 6656 | -8/Scraptown | Learned location of Lower Caves (-6) 6656 | -8/Scraptown | Learned location of Cetus (-5) 6656 | -8/Scraptown | Learned location of Armory (-4) 6656 | -8/Scraptown | Learned 8 Materials zone layouts 6656 | -8/Scraptown | Learned 8 Factory zone layouts 6656 | -8/Scraptown | Learned 16 Factory zone layouts 6656 | -8/Scraptown | Learned 24 Factory zone layouts 6656 | -8/Scraptown | Learned 12 Research zone layouts 6656 | -8/Scraptown | Learned 16 Research zone layouts 6656 | -8/Scraptown | Learned 20 Upper Caves zone layouts 6656 | -8/Scraptown | Learned 8 Proximity Caves zone layouts 6656 | -8/Scraptown | Learned 12 Proximity Caves zone layouts 6656 | -8/Scraptown | Learned Research emergency access door positions 6656 | -8/Scraptown | Learned location of 1 exit from Lower Caves 6656 | -8/Scraptown | Learned location of 3 exits from Upper Caves 6656 | -8/Scraptown | Learned location of 1 exit from Proximity Caves 6719 | -8/Scraptown | Found Deep Structural Scanner 6918 | -8/Scraptown | Identified Sfc. Transmogrifier 9578 | -8/Scraptown | Met Optimus 9578 | -8/Scraptown | Accepted into 0bPrime 9978 | -8/Scraptown | Civil war broke out across Scraptown 10034 | -8/Scraptown | Lost 5 allies 10065 | -8/Scraptown | Discovered new exit (range 6) 10084 | -8/Scraptown | Entered Factory 10084 | -6/Factory | Accompanied by 1 ally 10084 | -6/Factory | Evolved 8 slots: Power x1, Propulsion x3, Utility x4 10085 | -6/Factory | Identified exit to Lower Caves 10085 | -6/Factory | Identified exit to Factory 10218 | -6/Factory | Tech Extrapolator generated special schematic: Deep Structural Scanner 10522 | -6/Factory | Build established: Hacker-Mutant 10836 | -6/Factory | Central database locked down 10918 | -6/Factory | Lost 3 parts (2n1u) 11254 | -6/Factory | Fabricated Bolt Gun (x1) 11401 | -6/Factory | Fabricated Bolt Gun? 12038 | -6/Factory | Entered Lower Caves 12038 | -6/Lower Caves | Accompanied by 2 allies 12039 | -6/Lower Caves | Identified exit to Lower Caves 12275 | -6/Lower Caves | Build established: Assassin 12651 | -6/Lower Caves | Entered another Lower Caves area 12682 | -6/Lower Caves | Discovered exit to Factory (range 9) 13027 | -6/Lower Caves | Attacked by a delusional Derelict stockpiling parts 13212 | -6/Lower Caves | Discovered new exit (range 6) 13219 | -6/Lower Caves | Identified exit to Zion 13601 | -6/Lower Caves | Murdered Warlord Statue 13627 | -6/Lower Caves | Found Prototype Device 13627 | -6/Lower Caves | Identified Heart of Steel 13653 | -6/Lower Caves | Tech Extrapolator generated special schematic: Machine Rigger 13954 | -6/Lower Caves | Build established: Mutant 14456 | -6/Lower Caves | Entered Zion 14497 | -6/Zion | System corruption cleaned by Quarantine Array 14522 | -6/Zion | Given the Hacking Drone Bay 14525 | -6/Zion | Found Prototype Device 14563 | -6/Zion | Acquired unknown access codes intercepted by a Zionite 14624 | -6/Zion | Discovered new exit (range 12) 14873 | -6/Zion | Given A8's code to call for help 14900 | -6/Zion | Enhanced Grunt warped into view, answering call for help 14901 | -6/Zion | Enhanced Grunt warped into view, answering call for help 14983 | -6/Zion | Turned away by Imprinter 15120 | -6/Zion | Learned location of Warlord (-5) 15226 | -6/Zion | Learned 4 Factory zone layouts 15317 | -6/Zion | Tech Extrapolator generated special schematic: Heat Bomb Trap 15711 | -6/Zion | Attacked by Zionites 15717 | -6/Zion | Found Prototype Energy Gun 15717 | -6/Zion | Identified D4-RBY's Behemoth Befriender 15739 | -6/Zion | Identified exit to Proximity Caves 15745 | -6/Zion | Entered Proximity Caves 15745 | -5/Proximity Caves | Accompanied by 2 allies 15759 | -5/Proximity Caves | Encountered an infested base 15985 | -5/Proximity Caves | Learned Factory garrison access intel 16349 | -5/Proximity Caves | Spotted B-75 Beast 16690 | -5/Proximity Caves | Found Alien Artifact 17153 | -5/Proximity Caves | Entered Factory 17153 | -5/Factory | Accompanied by 1 ally 17153 | -5/Factory | Evolved 2 slots: Propulsion x1, Weapon x1 17154 | -5/Factory | Identified exit to Upper Caves 17155 | -5/Factory | Identified exit to Factory 17156 | -5/Factory | Loaded intel: 4 garrison access locations 17247 | -5/Factory | Heart of Steel transformed into Warbot 17612 | -5/Factory | Build established: Tank 17767 | -5/Factory | Entered Upper Caves 17768 | -5/Upper Caves | Identified exit to Upper Caves 18122 | -5/Upper Caves | Entered another Upper Caves area 18123 | -5/Upper Caves | Identified exit to Warlord 18586 | -5/Upper Caves | Learned Factory emergency access door positions 18620 | -5/Upper Caves | Learned Factory garrison access intel 18860 | -5/Upper Caves | Attacked by a faux Warlord 18941 | -5/Upper Caves | Entered Warlord 18941 | -5/Warlord | Accompanied by 1 ally 18982 | -5/Warlord | System corruption cleaned by Quarantine Array 19019 | -5/Warlord | Identified Dimensional Node Initializer 19019 | -5/Warlord | Initialized slip node 19054 | -5/Warlord | Found Prototype Reactor 19054 | -5/Warlord | Identified Vortex Chain Reactor 19057 | -5/Warlord | Found Prototype Device 19057 | -5/Warlord | Identified Exp. Phase Shifter 19075 | -5/Warlord | Found Prototype Hackware 19406 | -5/Warlord | Opened side exit 19428 | -5/Warlord | Discovered new exit (range 9) 19435 | -5/Warlord | Identified exit to Proximity Caves 19461 | -5/Warlord | Entered Proximity Caves 19461 | -4/Proximity Caves | Accompanied by 6 allies 19765 | -4/Proximity Caves | Lost 4 allies 19907 | -4/Proximity Caves | Attracted the attention of an 0b10 outpost 19933 | -4/Proximity Caves | Entered Factory 19933 | -4/Factory | Evolved 2 slots: Utility x1, Weapon x1 19935 | -4/Factory | Loaded intel: 4 garrison access locations 19940 | -4/Factory | Identified System Mapper 19940 | -4/Factory | Central database locked down 19999 | -4/Factory | Discovered new exit (range 5) 20003 | -4/Factory | Identified exit to Research 20259 | -4/Factory | Garrison activated, responded to threat 20433 | -4/Factory | First assault squad dispatched 20731 | -4/Factory | Discovered new exit (range 16) 20746 | -4/Factory | Identified exit to Upper Caves 20755 | -4/Factory | Entered Upper Caves 20755 | -4/Upper Caves | Accompanied by 1 ally 20756 | -4/Upper Caves | Identified exit to Upper Caves 20757 | -4/Upper Caves | Attracted the attention of an 0b10 checkpoint 20860 | -4/Upper Caves | Lost 3 parts (1n1u1w) 20862 | -4/Upper Caves | Destroyed 10 combat bots 21100 | -4/Upper Caves | Learned 4 Research zone layouts 21105 | -4/Upper Caves | Spotted B-86 Titan 21112 | -4/Upper Caves | Rewired B-86 Titan 21273 | -4/Upper Caves | Lost 3 parts (1p2w) 21528 | -4/Upper Caves | Build established: Mutant 21590 | -4/Upper Caves | Acquired the password to a Derelict Tinkerer's latest research 21665 | -4/Upper Caves | Entered another Upper Caves area 21665 | -4/Upper Caves | Accompanied by 1 ally 21666 | -4/Upper Caves | Encountered a Warlord checkpoint 21666 | -4/Upper Caves | Identified exit to Zhirov 21714 | -4/Upper Caves | Attracted the attention of an 0b10 checkpoint 21795 | -4/Upper Caves | Learned Research garrison access intel 22073 | -4/Upper Caves | Spotted B-86 Titan 22081 | -4/Upper Caves | Rewired B-86 Titan 22312 | -4/Upper Caves | Build established: Derelict-Skirmisher 22489 | -4/Upper Caves | Entered Zhirov 22489 | -4/Zhirov | Accompanied by 1 ally 22489 | -4/Zhirov | Discovered new exit (range 4) 22510 | -4/Zhirov | Met Zhirov 22539 | -4/Zhirov | Learned location of Command (-1) 22546 | -4/Zhirov | Zhirov requested help retrieving the SGEMP Prototype 22563 | -4/Zhirov | Found Alien Artifact 22563 | -4/Zhirov | Identified Integrated Dissipator 22563 | -4/Zhirov | Installed Integrated Dissipator, increased core heat dissipation (+20) 22641 | -4/Zhirov | Found Alien Artifact 22682 | -4/Zhirov | Identified exit to Proximity Caves 22683 | -4/Zhirov | Entered Proximity Caves 22683 | -3/Proximity Caves | Accompanied by 1 ally 22958 | -3/Proximity Caves | Discovered exit to Research (range 7) 23006 | -3/Proximity Caves | Entered Research 23006 | -3/Research | Accompanied by 1 ally 23006 | -3/Research | Evolved 2 slots: Propulsion x1, Utility x1 23007 | -3/Research | Identified exit to Research 23010 | -3/Research | Loaded intel: 3 garrison access locations 23028 | -3/Research | Identified exit to Quarantine 23071 | -3/Research | Build established: Scavenger-Skirmisher 23192 | -3/Research | Repaired Adv. Shield Generator 23219 | -3/Research | Spotted B-86 Titan 23235 | -3/Research | Rewired B-86 Titan 23406 | -3/Research | Fabricated Bolt Gun? 23553 | -3/Research | System corruption reached 10% 23674 | -3/Research | Discovered exit to Research (range 9) 23709 | -3/Research | Entered Quarantine 23836 | -3/Quarantine | Scanned by Researcher 23859 | -3/Quarantine | Found Alien Energy Cannon 23917 | -3/Quarantine | Found Alien Reactor 23999 | -3/Quarantine | Found Alien Artifact 24000 | -3/Quarantine | Identified Subatomic Replicator 24000 | -3/Quarantine | Used Subatomic Replicator to replicate Bolt Gun 24013 | -3/Quarantine | Central database locked down 24061 | -3/Quarantine | Found Fusion Bomb Launcher 24091 | -3/Quarantine | Entered Research 24091 | -2/Research | Evolved 2 slots: Utility x1, Weapon x1 24092 | -2/Research | Identified exit to Access 24092 | -2/Research | Identified exit to Testing 24157 | -2/Research | Entered Testing 24157 | -2/Testing | Accompanied by 1 ally 24312 | -2/Testing | Watched by a mysterious "MATRIX" hacker 24322 | -2/Testing | Found Prototype Device 24322 | -2/Testing | Identified AEGIS Remote Shield 24364 | -2/Testing | Found Prototype Device 24364 | -2/Testing | Identified Exp. Hardlight Generator 24413 | -2/Testing | Found Prototype Energy Gun 24413 | -2/Testing | Identified Warp Gun 24446 | -2/Testing | Discovered exit to Access (range 6) 24461 | -2/Testing | Found Prototype Ballistic Cannon 24461 | -2/Testing | Identified Omega Cannon 24477 | -2/Testing | Entered Access 24477 | -1/Access | Accompanied by 1 ally 24477 | -1/Access | Evolved 2 slots: Utility x2 24514 | -1/Access | Repaired Bolt Gun 24692 | -1/Access | Build established: Hacker-Gunner 24905 | -1/Access | Lost 4 parts (1u3w) 24961 | -1/Access | Destroyed 7 combat bots 25013 | -1/Access | System corruption reached 10% 25151 | -1/Access | Identified exit to Surface 25227 | -1/Access | First assault squad dispatched 25243 | -1/Access | Spotted B-99 Colossus 25250 | -1/Access | Rewired B-99 Colossus 25251 | -1/Access | Garrison activated, responded to threat 25266 | -1/Access | Identified Matter Drive 25280 | -1/Access | Lost 11 parts (2p3n1u5w) 25308 | *** | Escaped! Last Messages --------------- 25300_ Extracted 19 matter. 25300_ The unstable cave ceiling collapses. 25300_ Slug penetrates Earth. 25301_ The unstable cave ceiling collapses. 25301_ H-88 Terminator destroyed. 25302_ Extracted 19 matter. 25302_ The unstable cave ceiling collapses. 25303_ Centrium Medium Armor Plating destroyed. 25303_ G-73 Enforcer destroyed. 25303_ Destroyed Myomer Leg. 25303_ Destroyed Microactuators. 25303_ Lrg. Storage Unit destroyed. 25303_ Destroyed Lrg. Storage Unit. 25304_ Extracted 14 matter. 25305_ Fusion Bomb Launcher+ destroyed. 25305_ Cmb. Antigrav System+ destroyed. 25305_ Dropped AEGIS Remote Shield. 25306_ The unstable cave ceiling collapses. 25306_ Penetrated by Slug. 25307_ O9EOXIY6DMAA6GYCZ3TT M DKU1OCRY5P%D Map ----- +----------------------------------------------------+ | ?????????????????????????????????????????????????? | | ?????????????????????????????????????????????????? | | ?????????????????????????????????????????????????? | | ?????????????????????????????????????????????????? | | ?????????????????????????????????????????????????? | | ?????????????????????????????????????????????????? | | ?????????????????????????????????????????????????? | | ???????????????????????????????????????####??????? | | ???????????????????????????????????????# ##?????? | | ????????????????????????????????????#### "####??? | | ????????????????????????????????????# !!= #??? | | ????????????????????????????????????# !]= #??? | | ????????????????????????????????????# !== #### | | ????????????????????????????????????# # | | ????????????????????????????????????# " | | ????????????????????????????????????# %/! | | ????????????????????????????????????# =% | | ????????????????????????????????????# %" % | | ????????????????????????????????????# # | | ????????????????????????????????????# # | | ????????????????????????""""""#?????# !!= # | | ????????????????????????? #?????# !!= # | | ??????????????????????"""" #?????# !!= # " | | ??????????????????????" !! #?????# # | | ??????????????????????" ""!!| # + | | ??????????????????????" "@ !lgg%Y # #### | | ??????????????????????" gh i ####+##??? | | ??????????????????????"""" * ???????? | | ????????????????????????? # ???????? | | ?????????????????????? # ????????? | | ?????????????????????""""""""""? # ????????? | | ????????????????????????????????? ????????? | | ??????????????????????????????????# # ?????????? | | ??????????????????????????????????? ?????????? | | ???????????????????????????????????? #?????????? | | ????????????????????????????????????? #?????????? | | ????????????????????????????????????? #?????????? | | ????????????????????????????????????? #?????????? | | ????????????????????????????????????? #?????????? | | ????????????????????????????????????? ??????????? | | ????????????????????????????????????? ??????????? | | ????????????????????????????????????? ??????????? | | ?????????????????????????????????????????????????? | | ?????????????????????????????????????????????????? | | ?????????????????????????????????????????????????? | | ?????????????????????????????????????????????????? | | ?????????????????????????????????????????????????? | | ?????????????????????????????????????????????????? | | ?????????????????????????????????????????????????? | | ?????????????????????????????????????????????????? | +----------------------------------------------------+ Best States ------------- Heat Dissipation 103 Energy Generation 55 Energy Capacity 700 Matter Stores 300 Matter Capacity 800 Sight Range 22 Robot Scan Range 16 Terrain Scan Density 10 Jamming Range 16 Armor Coverage 450 Weapon Shielding 66 Weapon Cycling 25 Evasion (%) 82 Target Analysis 12 Core Analysis 6 Recoil Reduction 4 Offensive Hacking 30 Defensive Hacking 10 Authchip Count 2 Item Schematics ----------------- Battle Cannon | -6/Factory | Extrapolated Deep Structural Scanner | -6/Factory | Extrapolated Beamcaster | -6/Factory | Extrapolated Mak. Power Source | -6/Factory | Extrapolated 0b10 Decoder Chip [Scout] | -6/Factory | Extrapolated Bolt Gun | -6/Factory | Scanalyzed Slug Cannon | -6/Factory | Extrapolated Bore Cannon | -6/Factory | Extrapolated 0b10 Decoder Chip [Generic] | -6/Factory | Extrapolated 0b10 Decoder Chip [Skirmisher] | -6/Factory | Extrapolated Mak. Coolant Network | -6/Lower Caves | Extrapolated Plasma Flamer | -6/Lower Caves | Extrapolated Hvy. Beamcaster | -6/Lower Caves | Extrapolated Machine Rigger | -6/Lower Caves | Extrapolated Multitool | -6/Lower Caves | Extrapolated Spk. Treads | -6/Zion | Extrapolated Spk. Medium Treads | -6/Zion | Extrapolated Mak. Core Shielding | -6/Zion | Extrapolated Mak. Thermal Plating | -6/Zion | Extrapolated Mak. Hacking Suite | -6/Zion | Extrapolated Adv. Cooling System | -6/Zion | Archive Hyp. Gauss Rifle | -6/Zion | Archive Force Field | -6/Zion | Archive Lance | -6/Zion | Archive Mak. System Shield | -6/Zion | Extrapolated Imp. Antigrav System | -6/Zion | Archive Matter Compressor | -6/Zion | Archive Point Defense System | -6/Zion | Archive Hpw. Shock Rifle | -6/Zion | Archive Drone Bay | -6/Zion | Archive Field Propulsion Drive | -6/Zion | Archive Hvy. Plasma Cannon | -6/Zion | Archive KE Penetrator | -6/Zion | Archive Impulse Thruster | -6/Zion | Archive Arc Thrower | -6/Zion | Extrapolated Heat Bomb Trap | -6/Zion | Extrapolated Cld. Antigrav System | -4/Factory | Scanalyzed Assault Drone Bay | -4/Zhirov | Free Exp. Heat Sink | -4/Zhirov | Free Exp. Optical Array | -4/Zhirov | Free Imp. Arc Thrower | -4/Zhirov | Free Centrium Heavy Armor Plating | -3/Quarantine | Archive Cld. Field Propulsion Drive | -2/Testing | Archive Imp. Energy Well | -2/Testing | Archive Robot Schematics ------------------ O-24 Administrator | -8/Recycling | Hacked C-57 Dissector | -6/Zion | Archive M-22 Extractor | -6/Zion | Archive A-15 Conveyor | -6/Zion | Archive Fabricated ------------ Bolt Gun | x1 | -6/Factory | Authchip Bolt Gun | x1 | -6/Factory | Authchip Bolt Gun | x1 | -3/Research Repaired ---------- Lgt. Treads | 36% | -10/Materials Adv. Shield Generator | 34% | -3/Research Bolt Gun | 10% | -1/Access Studied --------- Lgt. Treads | -6/Factory | Hacked Gauss Cannon | -6/Factory | Hacked Mass Driver | -4/Factory | Hacked Arm. Leg | -4/Factory | Hacked Imp. Antigrav System | -3/Research | Hacked Imp. Linear Gravjet | -3/Research | Hacked Mic. Antimatter Reactor | -3/Quarantine | Hacked Cmb. Antigrav System | -3/Quarantine | Hacked Gravmag Array | -2/Testing | Hacked Fusion Bomb Launcher | -2/Testing | Hacked Alien Tech Used ----------------- Dimensional Node Initializer Integrated Dissipator Subatomic Replicator Matter Drive Achievements -------------- None Challenges ------------ None Game ------ Seed TowerLobotomyPropulsion Manual? 0 Play Time 02:40:14 Cumulative 2273.0 hours Start 2026.07.18 @ 10:25:49 End 2026.07.18 @ 13:05:22 Sessions 1 Manual Loads 0 Difficulty Rogue Special Mode None Game No. 1421 Rogue 1417 Adventurer 4 Explorer 0 Win Type 0 Total 327 Types 245/14/27/11/4/1/6/10/5/4 Lore% 99 Gallery% 96 Achievement% 94 Wizard Run 0 Options --------- Layout 2 ASCII 0 Keyboard 1 Movement Vi Keybinds 0 Fullscreen 0 Font 24/Terminus Map View 59x48 Zoom Use 0% Tactical HUD 1 Map Filters NONE Filters NONE Steam 1 RUN: 508890d4-cdd3-4d42-b737-7f004c55df62